fUSD/lending_fUSD_20260130
["ID","MTS","AMOUNT","RATE_DAILY","PERIOD"]
[404090074,1769811045939,-18276.65734655,0.00017423,2]
[404090075,1769811045952,-217.15233878,0.00017468,2]
[404090076,1769811045962,-4553.6,0.00017469,2]
[404090077,1769811045984,-4553.6,0.00017522,2]
[404090078,1769811046009,-225.18697532,0.00017523,2]
[404090079,1769811046031,-393.36,0.00017541,2]
[404090080,1769811046053,-168.0,0.00017565,2]
[404090081,1769811046072,-363.0280823,0.00017568,2]
[404090082,1769811046091,-1480.92328095,0.00017575,2]
[404090085,1769811047679,-3072.67671905,0.00017575,2]
[404090086,1769811047689,-233.51889341,0.00017578,2]
[404090087,1769811047700,-4553.6,0.00017628,2]
[404090088,1769811047710,-242.15909246,0.00017633,2]
[404090089,1769811047721,-251.11897888,0.00017688,2]
[404090090,1769811047730,-236.567596,0.00017701,2]
[404090091,1769811047741,-500.0,0.00017723,2]
[404090092,1769811047753,-150.0,0.00017723,2]
[404090093,1769811047762,-500.0,0.00017723,2]
[404090094,1769811047772,-500.0,0.00017723,2]
[404090095,1769811047781,-500.0,0.00017723,2]
[404090096,1769811047793,-150.0,0.00017723,2]
[404090097,1769811047803,-500.0,0.00017723,2]
[404090098,1769811047813,-150.0,0.00017723,2]
[404090099,1769811047823,-500.0,0.00017723,2]
[404090100,1769811047833,-150.0,0.00017723,2]
[404090101,1769811047842,-150.0,0.00017723,2]
[404090102,1769811047853,-171.51596019,0.00017723,2]
[404090103,1769811047862,-500.0,0.00017723,2]
[404090104,1769811047871,-260.4103811,0.00017743,2]
[404090105,1769811047880,-500.0,0.00017778,2]
[404090106,1769811047891,-238.0007656,0.00017778,2]
[404090107,1769811047900,-500.0,0.00017778,2]
[404090108,1769811047911,-500.0,0.00017778,2]
[404090109,1769811047921,-500.0,0.00017778,2]
[404090110,1769811047931,-500.0,0.00017778,2]
[404090111,1769811047941,-500.0,0.00017778,2]
[404090112,1769811047952,-150.0,0.00017778,2]
[404090113,1769811047962,-150.0,0.00017778,2]
[404090114,1769811047971,-500.0,0.00017778,2]
[404090115,1769811047980,-270.0455652,0.00017798,2]
[404090116,1769811047990,-1000.0,0.000178,2]
[404090117,1769811047999,-1444.051,0.00017817,2]
[404090118,1769811048009,-183.266,0.00017817,2]
[404090119,1769811048019,-1207.40172,0.0001782,2]
[404090120,1769811048030,-1207.40172,0.0001782,2]
[404090121,1769811048041,-1207.40172,0.0001782,2]
[404090122,1769811048050,-1207.40172,0.0001782,2]
[404090123,1769811048059,-500.0,0.00017822,2]
[404090124,1769811048068,-500.0,0.00017833,2]
[404090125,1769811048077,-500.0,0.00017833,2]
[404090126,1769811048087,-363.39557034,0.00017833,2]
[404090127,1769811048096,-500.0,0.00017833,2]
[404090128,1769811048105,-500.0,0.00017833,2]
[404090129,1769811048115,-500.0,0.00017833,2]
[404090130,1769811048124,-267.0,0.00017833,2]
[404090131,1769811048134,-296.98801809,0.00017833,2]
[404090132,1769811048143,-557.88232407,0.00017833,2]
[404090133,1769811048154,-32102.9286048,0.00017833,2]
[404090134,1769811048163,-5486.2804886,0.00017833,2]
[404090135,1769811048172,-151.0,0.00017833,2]
[404090136,1769811048181,-151.0,0.00017833,2]
[404090137,1769811048190,-151.0,0.00017833,2]
[404090138,1769811048200,-227.854018,0.00017833,2]
[404090139,1769811048211,-151.0,0.00017833,2]
[404090140,1769811048220,-227.854018,0.00017833,2]
[404090141,1769811048230,-314.328036,0.00017833,2]
[404090142,1769811048239,-227.854018,0.00017833,2]
[404090143,1769811048249,-314.328036,0.00017833,2]
[404090144,1769811048259,-227.854018,0.00017833,2]
[404090145,1769811048269,-314.328036,0.00017833,2]
[404090146,1769811048278,-314.328036,0.00017833,2]
[404090147,1769811048288,-151.0,0.00017833,2]
[404090148,1769811048297,-151.0,0.00017833,2]
[404090149,1769811048307,-280.03725112,0.00017853,2]
[404090150,1769811048316,-151.0,0.00017853,2]
[404090151,1769811048324,-151.0,0.00017853,2]
[404090152,1769811048333,-1899.21901775,0.00017855,2]
[404090153,1769811048343,-151.0,0.00017857,2]
[404090154,1769811048352,-151.0,0.00017857,2]
[404090155,1769811048361,-151.0,0.00017857,2]
[404090156,1769811048370,-227.854018,0.00017857,2]
[404090157,1769811048379,-151.0,0.00017857,2]
[404090158,1769811048388,-227.854018,0.00017857,2]
[404090159,1769811048397,-314.328036,0.00017857,2]
[404090160,1769811048406,-227.854018,0.00017857,2]
[404090161,1769811048415,-314.328036,0.00017857,2]
[404090162,1769811048424,-227.854018,0.00017857,2]
[404090163,1769811048434,-314.328036,0.00017857,2]
[404090164,1769811048443,-314.328036,0.00017857,2]
[404090165,1769811048452,-500.0,0.00017857,2]
[404090166,1769811048463,-500.0,0.00017857,2]
[404090167,1769811048472,-500.0,0.00017857,2]
[404090168,1769811048481,-500.0,0.00017857,2]
[404090169,1769811048492,-500.0,0.00017857,2]
[404090170,1769811048502,-500.0,0.00017857,2]
[404090171,1769811048512,-500.0,0.00017857,2]
[404090172,1769811048521,-500.0,0.00017857,2]
[404090173,1769811048532,-500.0,0.00017857,2]
[404090174,1769811048541,-500.0,0.00017857,2]
[404090175,1769811048551,-500.0,0.00017857,2]
[404090176,1769811048561,-500.0,0.00017857,2]
[404090177,1769811048570,-462.91816053,0.00017857,2]
[404090178,1769811048581,-500.0,0.00017857,2]
[404090179,1769811048591,-500.0,0.00017857,2]
[404090180,1769811048600,-500.0,0.00017857,2]
[404090181,1769811048610,-500.0,0.00017857,2]
[404090182,1769811048620,-500.0,0.00017857,2]
[404090183,1769811048629,-500.0,0.00017857,2]
[404090184,1769811048639,-500.0,0.00017857,2]
[404090185,1769811048649,-500.0,0.00017857,2]
[404090186,1769811048658,-500.0,0.00017857,2]
[404090187,1769811048668,-500.0,0.00017857,2]
[404090188,1769811048677,-500.0,0.00017857,2]
[404090189,1769811048686,-500.0,0.00017857,2]
[404090190,1769811048696,-500.0,0.00017857,2]
[404090191,1769811048705,-500.0,0.00017857,2]
[404090192,1769811048715,-500.0,0.00017857,2]
[404090193,1769811048724,-500.0,0.00017857,2]
[404090194,1769811048737,-500.0,0.00017857,2]
[404090195,1769811048746,-500.0,0.00017857,2]
[404090196,1769811048756,-500.0,0.00017857,2]
[404090197,1769811048765,-500.0,0.00017857,2]
[404090198,1769811048775,-500.0,0.00017857,2]
[404090199,1769811048786,-561.75621724,0.00017857,2]
[404090200,1769811048795,-500.0,0.00017857,2]
[404090201,1769811048805,-500.0,0.00017857,2]
[404090202,1769811048815,-500.0,0.00017857,2]
[404090203,1769811048826,-500.0,0.00017857,2]
[404090204,1769811048836,-500.0,0.00017857,2]
[404090205,1769811048845,-500.0,0.00017857,2]
[404090206,1769811048855,-500.0,0.00017857,2]
[404090207,1769811048864,-500.0,0.00017857,2]
[404090208,1769811048873,-500.0,0.00017857,2]
[404090209,1769811048882,-500.0,0.00017857,2]
[404090210,1769811048891,-537.17,0.00017858,2]
[404090211,1769811048901,-35648.64517993,0.00017859,2]
[404090212,1769811048913,-2800.0,0.00017859,2]
[404090213,1769811214922,158.0,0.00024925,120]
[404090217,1769812004585,212.58,0.00015,4]
[404090218,1769812065117,949.60083468,0.00013,15]
[404090219,1769812152141,-6358.74674232,0.00014019,2]
[404090220,1769812158311,-914.48325768,0.00014019,2]
[404090221,1769812158331,-6553.22438943,0.0001439,2]
[404090222,1769812158353,-1200.0,0.00015232,2]
[404090223,1769812158374,-851.37422741,0.00015233,2]
[404090224,1769812158393,-250.0,0.00015573,2]
[404090225,1769812158415,-297.28301485,0.00015583,2]
[404090226,1769812158437,-170.8858132,0.00015583,2]
[404090227,1769812210630,248.58845213,0.00024925,120]
[404090236,1769812231644,-231.3412868,0.00015583,2]
[404090237,1769812231654,-223.77,0.00016008,2]
[404090238,1769812231664,-610.5,0.00016551,2]
[404090239,1769812231674,-211.25,0.00016646,2]
[404090240,1769812231684,-681.33,0.00016655,2]
[404090241,1769812231693,-500.0,0.00016691,2]
[404090242,1769812231703,-151.0,0.00016759,2]
[404090243,1769812231713,-151.0,0.00016759,2]
[404090244,1769812231724,-151.0,0.00016762,2]
[404090245,1769812231735,-151.0,0.00016766,2]
[404090246,1769812231745,-200.0,0.00016869,2]
[404090247,1769812231755,-250.0,0.00017,2]
[404090248,1769812231766,-2365.16931859,0.00017,2]
[404090249,1769812231775,-578.20924308,0.00017004,2]
[404090250,1769812231785,-416.02262998,0.00017148,2]
[404090251,1769812231795,-766.2676,0.00017213,2]
[404090252,1769812231804,-678.92,0.00017213,2]
[404090253,1769812231817,-366.21091777,0.00017266,2]
[404090254,1769812231830,-1023.78908223,0.00017266,2]
[404090255,1769812231841,-209.40437684,0.00017292,2]
[404090256,1769812231852,-174.61919141,0.00017292,2]
[404090257,1769812231862,-209.40437684,0.00017292,2]
[404090258,1769812231874,-9.12836016,0.00017292,2]
[404090259,1769812231900,-313.48233984,0.00017292,2]
[404090260,1769812231910,-151.0,0.00017295,2]
[404090261,1769812231921,-41.51766016,0.00017298,2]
[404090262,1769812231951,-484.70471968,0.00017298,2]
[404090263,1769812231960,-529.63373046,0.00017298,2]
[404090292,1769812238285,-151.0,0.00016763,2]
[404090294,1769812238295,-2470.36626954,0.00017298,2]
[404090296,1769812238305,-2000.0,0.00017298,2]
[404090298,1769812238314,-3000.0,0.00017298,2]
[404090300,1769812238324,-2000.0,0.00017298,2]
[404090302,1769812238333,-3000.0,0.00017298,2]
[404090304,1769812238344,-1000.0,0.00017298,2]
[404090306,1769812238354,-2912.11903503,0.00017298,2]
[404090309,1769812238366,-87.88096497,0.00017298,2]
[404090311,1769812238382,-2000.0,0.00017298,2]
[404090313,1769812238392,-179.0426987,0.00017298,2]
[404090316,1769812238405,-276.31001189,0.00017298,2]
[404090324,1769812238471,-544.64728941,0.00017298,2]
[404090326,1769812238483,-2000.0,0.00017298,2]
[404090328,1769812238493,-392.35271064,0.00017298,2]
[404090330,1769812238505,-300.0,0.00017298,2]
[404090333,1769812238521,-853.2605983,0.00017298,2]
[404090369,1769812239981,-392.7585268,0.00017298,2]
[404090370,1769812240042,-1061.62816426,0.00017298,2]
[404090371,1769812240052,-654.30902602,0.00017298,2]
[404090372,1769812240061,-495.13206956,0.00017298,2]
[404090381,1769812243295,-708.96052804,0.00017298,2]
[404090382,1769812243305,-721.12765535,0.00017298,2]
[404090383,1769812243314,-2062.37461804,0.00017298,2]
[404090384,1769812243323,-371.49990503,0.00017298,2]
[404090385,1769812243333,-151.0,0.00017298,2]
[404090386,1769812243343,-854.2589148,0.00017298,2]
[404090387,1769812243353,-1000.0,0.00017298,2]
[404090388,1769812243363,-1000.0,0.00017298,2]
[404090389,1769812243372,-1000.0,0.00017298,2]
[404090390,1769812243381,-652.32548751,0.00017298,2]
[404090391,1769812243391,-500.0,0.00017298,2]
[404090392,1769812243400,-500.0,0.00017298,2]
[404090393,1769812243410,-500.0,0.00017298,2]
[404090394,1769812243419,-500.0,0.00017298,2]
[404090395,1769812243428,-500.0,0.00017298,2]
[404090396,1769812243437,-500.0,0.00017298,2]
[404090397,1769812243447,-500.0,0.00017298,2]
[404090398,1769812243456,-500.0,0.00017298,2]
[404090399,1769812243465,-500.0,0.00017298,2]
[404090400,1769812243475,-500.0,0.00017298,2]
[404090401,1769812243485,-314.35815498,0.00017298,2]
[404090402,1769812243494,-500.0,0.00017298,2]
[404090404,1769812243504,-1482.0,0.00017308,2]
[404090406,1769812243514,-217.15233878,0.00017347,2]
[404090408,1769812243524,-222.0,0.0001736,2]
[404090410,1769812243534,-225.18697532,0.00017402,2]
[404090412,1769812243543,-297.75542215,0.00017425,2]
[404090415,1769812243634,-1036.94153083,0.00017425,2]
[404090416,1769812245830,-500.0,0.00017425,2]
[404090417,1769812245947,-2833.07172589,0.00017425,2]
[404090418,1769812245957,-1390.0,0.00017449,2]
[404090419,1769812245966,-233.51889341,0.00017457,2]
[404090420,1769812245975,-242.15909246,0.00017512,2]
[404090421,1769812245984,-500.0,0.00017559,2]
[404090422,1769812245994,-158.92071205,0.00017559,2]
[404090423,1769812246005,-150.0,0.00017559,2]
[404090424,1769812246015,-500.0,0.00017559,2]
[404090425,1769812246026,-500.0,0.00017559,2]
[404090426,1769812246035,-150.0,0.00017559,2]
[404090427,1769812246044,-150.0,0.00017559,2]
[404090428,1769812246054,-251.11897888,0.00017567,2]
[404090429,1769812246063,-211.25,0.00017571,2]
[404090430,1769812246072,-150.0,0.00017597,2]
[404090431,1769812246081,-500.0,0.00017614,2]
[404090432,1769812246093,-500.0,0.00017614,2]
[404090433,1769812246104,-543.00645443,0.00017614,2]
[404090434,1769812246113,-150.0,0.00017614,2]
[404090435,1769812246121,-150.0,0.00017614,2]
[404090436,1769812246130,-772.81,0.00017616,2]
[404090437,1769812246140,-260.4103811,0.00017622,2]
[404090438,1769812246149,-1414.73506153,0.0001763,2]
[404090439,1769812246158,-500.0,0.00017641,2]
[404090440,1769812246171,-150.0,0.00017652,2]
[404090442,1769812246181,-500.0,0.00017669,2]
[404090444,1769812246190,-500.0,0.00017669,2]
[404090446,1769812246199,-150.0,0.00017669,2]
[404090448,1769812246208,-200.0,0.00017669,2]
[404090449,1769812246217,-270.0455652,0.00017677,2]
[404090450,1769812246227,-1500.0,0.000177,2]
[404090451,1769812246236,-649.99,0.000177,2]
[404090452,1769812246247,-272.0,0.00017707,2]
[404090453,1769812246257,-1390.0,0.00017713,2]
[404090454,1769812246266,-200.0,0.00017723,2]
[404090455,1769812246275,-500.0,0.00017723,2]
[404090456,1769812246284,-234.9787496,0.00017723,2]
[404090457,1769812246293,-280.03725112,0.00017732,2]
[404090458,1769812246303,-500.0,0.00017778,2]
[404090459,1769812246312,-290.39862941,0.00017787,2]
[404090460,1769812246322,-200.0,0.00017796,2]
[404090461,1769812246332,-500.0,0.00017798,2]
[404090462,1769812246343,-2154.44320625,0.00017799,2]
[404090463,1769812246353,-151.0,0.00017808,2]
[404090464,1769812246362,-2154.44320623,0.0001781,2]
[404090465,1769812246372,-1155.241,0.00017811,2]
[404090466,1769812246383,-183.266,0.00017811,2]
[404090467,1769812246393,-402.46723,0.0001782,2]
[404090468,1769812246402,-402.46724,0.0001782,2]
[404090469,1769812246412,-2154.44320623,0.00017821,2]
[404090470,1769812246421,-2154.44320623,0.00017833,2]
[404090471,1769812246431,-500.0,0.00017833,2]
[404090472,1769812246441,-217.15233878,0.0001784,2]
[404090473,1769812246451,-181.08010149,0.0001784,2]
[404090474,1769812246460,-500.0,0.00017841,2]
[404090475,1769812246468,-301.1433787,0.00017842,2]
[404090476,1769812246478,-2154.44320623,0.00017844,2]
[404090477,1769812246487,-230.16041742,0.00017846,2]
[404090478,1769812246496,-885.86649465,0.00017846,2]
[404090479,1769812246505,-2154.44320623,0.00017855,2]
[404090480,1769812246514,-39092.9352263,0.00017858,2]
[404090481,1769812246523,-6882.9630912,0.00017858,2]
[404090482,1769812246533,-187.547238,0.00017858,2]
[404090483,1769812246543,-3686.92635507,0.00017859,2]
[404090484,1769812246552,-3045.1622112,0.00017859,2]
[404090485,1769812246562,-1502.0,0.00017859,2]
[404090486,1769812246571,-1502.0,0.00017859,2]
[404090487,1769812246580,-2154.44320623,0.00017866,2]
[404090488,1769812246588,-2154.44320623,0.00017878,2]
[404090489,1769812246598,-151.0,0.00017878,2]
[404090490,1769812246607,-547.21283935,0.00017878,2]
[404090491,1769812246616,-441.59041391,0.00017888,2]
[404090492,1769812246625,-2154.44320623,0.00017889,2]
[404090493,1769812246635,-567.42,0.00017889,2]
[404090494,1769812246644,-772.81,0.0001789,2]
[404090495,1769812246654,-500.0,0.00017899,2]
[404090496,1769812246664,-500.0,0.00017899,2]
[404090497,1769812246673,-500.0,0.00017899,2]
[404090498,1769812246682,-500.0,0.00017899,2]
[404090499,1769812246691,-500.0,0.00017899,2]
[404090500,1769812246700,-500.0,0.00017899,2]
[404090501,1769812246710,-500.0,0.00017899,2]
[404090502,1769812246718,-500.0,0.00017899,2]
[404090503,1769812246728,-536.93066964,0.00017899,2]
[404090504,1769812246739,-506.17562172,0.00017899,2]
[404090505,1769812246748,-500.0,0.00017899,2]
[404090506,1769812246757,-500.0,0.00017899,2]
[404090507,1769812246766,-500.0,0.00017899,2]
[404090508,1769812246775,-500.0,0.00017899,2]
[404090509,1769812246785,-500.0,0.00017899,2]
[404090510,1769812246794,-500.0,0.00017899,2]
[404090511,1769812246804,-500.0,0.00017899,2]
[404090512,1769812246813,-500.0,0.00017899,2]
[404090513,1769812246823,-500.0,0.00017899,2]
[404090514,1769812246832,-500.0,0.00017899,2]
[404090515,1769812246841,-500.0,0.00017899,2]
[404090516,1769812246851,-500.0,0.00017899,2]
[404090517,1769812246861,-500.0,0.00017899,2]
[404090518,1769812246870,-500.0,0.00017899,2]
[404090519,1769812246879,-500.0,0.00017899,2]
[404090520,1769812246889,-500.0,0.00017899,2]
[404090521,1769812246898,-500.0,0.00017899,2]
[404090522,1769812246907,-500.0,0.00017899,2]
[404090523,1769812246917,-500.0,0.00017899,2]
[404090524,1769812246928,-314.48006029,0.00017899,2]
[404090525,1769812246939,-500.0,0.00017899,2]
[404090526,1769812246948,-500.0,0.00017899,2]
[404090527,1769812246957,-500.0,0.00017899,2]
[404090528,1769812246967,-500.0,0.00017899,2]
[404090529,1769812246976,-500.0,0.00017899,2]
[404090530,1769812246985,-350.0,0.00017899,2]
[404090531,1769812246994,-500.0,0.00017899,2]
[404090532,1769812247004,-500.0,0.00017899,2]
[404090533,1769812247013,-236.22286402,0.000179,2]
[404090534,1769812247022,-151.0,0.000179,2]
[404090535,1769812247031,-151.0,0.000179,2]
[404090536,1769812247040,-151.0,0.000179,2]
[404090537,1769812247050,-151.0,0.000179,2]
[404090538,1769812247059,-151.0,0.000179,2]
[404090539,1769812247068,-151.0,0.000179,2]
[404090540,1769812247078,-243.39013,0.000179,2]
[404090541,1769812247087,-151.0,0.000179,2]
[404090542,1769812247101,-151.0,0.000179,2]
[404090543,1769812247111,-151.0,0.000179,2]
[404090544,1769812247120,-151.0,0.000179,2]
[404090545,1769812247129,-151.0,0.000179,2]
[404090546,1769812247140,-2508.0,0.000179,2]
[404090547,1769812247152,-10000.0,0.000179,2]
[404090548,1769812247160,-36288.86017559,0.000179,2]
[404090549,1769812247171,-251.0588351,0.000179,2]
[404090550,1769812247180,-226.019326,0.000179,2]
[404090551,1769812247191,-226.019326,0.000179,2]
[404090552,1769812247200,-226.019326,0.000179,2]
[404090553,1769812247210,-226.019326,0.000179,2]
[404090554,1769812247220,-151.0,0.000179,2]
[404090555,1769812247229,-151.0,0.000179,2]
[404090556,1769812247238,-199.347532,0.000179,2]
[404090557,1769812247246,-151.0,0.000179,2]
[404090558,1769812247255,-151.0,0.000179,2]
[404090559,1769812247263,-151.0,0.000179,2]
[404090560,1769812247272,-151.0,0.000179,2]
[404090561,1769812247282,-151.0,0.000179,2]
[404090562,1769812247291,-151.0,0.000179,2]
[404090563,1769812247299,-249.624291,0.000179,2]
[404090564,1769812247308,-151.0,0.000179,2]
[404090565,1769812247317,-151.0,0.000179,2]
[404090566,1769812247326,-158.430709,0.000179,2]
[404090567,1769812247335,-783.1113806,0.000179,2]
[404090568,1769812247345,-212.08876731,0.000179,2]
[404090569,1769812247355,-777.89325137,0.000179,2]
[404090570,1769812247364,-2154.44320623,0.000179,2]
[404090571,1769812247373,-500.0,0.000179,2]
[404090572,1769812247382,-500.0,0.000179,2]
[404090573,1769812247393,-500.0,0.000179,2]
[404090574,1769812247404,-500.0,0.000179,2]
[404090575,1769812247414,-333.80917069,0.000179,2]
[404090576,1769812247423,-226.019326,0.00017964,2]
[404090577,1769812247431,-226.019326,0.00017964,2]
[404090578,1769812247441,-226.019326,0.00017964,2]
[404090579,1769812247450,-226.019326,0.00017964,2]
[404090580,1769812247459,-151.0,0.00017964,2]
[404090581,1769812247467,-151.0,0.00017964,2]
[404090582,1769812247478,-151.0,0.00017964,2]
[404090583,1769812247488,-151.0,0.00017964,2]
[404090584,1769812247500,-151.0,0.00017964,2]
[404090585,1769812247509,-151.0,0.00017964,2]
[404090586,1769812247520,-151.0,0.00017964,2]
[404090587,1769812247528,-151.0,0.00017964,2]
[404090588,1769812247538,-1204.0,0.00017964,2]
[404090589,1769812247547,-916.0,0.00017964,2]
[404090590,1769812247556,-1334.0,0.00017964,2]
[404090591,1769812247565,-3479.0,0.00017964,2]
[404090592,1769812247574,-1409.0,0.00017964,2]
[404090593,1769812247583,-5933.0,0.00017964,2]
[404090594,1769812247592,-2444.0,0.00017964,2]
[404090595,1769812247601,-616.268,0.00017964,2]
[404090596,1769812247611,-166.37398015,0.00017972,2]
[404090597,1769812247620,-500.0,0.00017972,2]
[404090598,1769812247629,-500.0,0.00017973,2]
[404090599,1769812247638,-500.0,0.00017973,2]
[404090600,1769812247647,-500.0,0.00017973,2]
[404090601,1769812247657,-500.0,0.00017973,2]
[404090602,1769812247666,-500.0,0.00017973,2]
[404090603,1769812247675,-500.0,0.00017973,2]
[404090604,1769812247683,-500.0,0.00017973,2]
[404090605,1769812247692,-500.0,0.00017973,2]
[404090606,1769812247701,-195.80691697,0.00017973,2]
[404090607,1769812247711,-500.0,0.00017973,2]
[404090608,1769812247720,-150.2937682,0.00017973,2]
[404090609,1769812247730,-500.0,0.00017973,2]
[404090610,1769812247739,-500.0,0.00017973,2]
[404090611,1769812247748,-500.0,0.00017973,2]
[404090612,1769812247757,-584.53861149,0.00017973,2]
[404090613,1769812247766,-502.15998223,0.00017973,2]
[404090614,1769812247776,-500.0,0.00017973,2]
[404090615,1769812247784,-500.0,0.00017973,2]
[404090616,1769812247795,-500.0,0.00017973,2]
[404090617,1769812247805,-500.0,0.00017973,2]
[404090618,1769812247815,-500.0,0.00017973,2]
[404090619,1769812247823,-500.0,0.00017973,2]
[404090620,1769812247833,-500.0,0.00017973,2]
[404090621,1769812247843,-500.0,0.00017973,2]
[404090622,1769812247852,-500.0,0.00017973,2]
[404090623,1769812247861,-500.0,0.00017973,2]
[404090624,1769812247870,-500.0,0.00017973,2]
[404090625,1769812247879,-184.87441508,0.00017973,2]
[404090626,1769812247889,-500.0,0.00017973,2]
[404090627,1769812247899,-500.0,0.00017973,2]
[404090628,1769812247909,-500.0,0.00017973,2]
[404090629,1769812247918,-593.37800921,0.00017973,2]
[404090630,1769812247927,-500.0,0.00017973,2]
[404090631,1769812247937,-500.0,0.00017973,2]
[404090632,1769812247947,-500.0,0.00017973,2]
[404090633,1769812247956,-500.0,0.00017973,2]
[404090634,1769812247966,-500.0,0.00017973,2]
[404090635,1769812247976,-500.0,0.00017973,2]
[404090636,1769812247985,-500.0,0.00017973,2]
[404090637,1769812247994,-500.5347476,0.00017973,2]
[404090638,1769812248003,-500.0,0.00017973,2]
[404090639,1769812248012,-288.05199057,0.00017973,2]
[404090640,1769812248021,-500.0,0.00017973,2]
[404090641,1769812248030,-150.0,0.00017973,2]
[404090642,1769812248039,-150.0,0.00017973,2]
[404090643,1769812248048,-98981.96023658,0.0001799,3]
[404090644,1769812248062,-1915.50006,0.0001799,3]
[404090648,1769812662253,150.0,0.000206,30]
[404090649,1769812807596,174.0,0.00021012,120]
[404090650,1769813242222,-166.66,0.00016092,2]
[404090651,1769813242244,-22.0489121,0.00016283,7]
[404090652,1769813358113,-179.54303278,0.00015469,7]
[404090653,1769813358134,-16.45696722,0.00015469,7]
[404090658,1769813431779,-157.52745027,0.00015469,7]
[404090659,1769813431788,-500.0,0.00016373,2]
[404090660,1769813431798,-166.66,0.0001643,2]
[404090661,1769813431809,-249.76,0.00016537,2]
[404090662,1769813431818,-163.35490466,0.00016547,2]
[404090663,1769813431830,-150.0,0.00016559,2]
[404090664,1769813431841,-645.4,0.00016563,2]
[404090665,1769813431851,-151.0,0.00016647,2]
[404090666,1769813431861,-151.0,0.00016647,2]
[404090667,1769813431870,-151.0,0.00016648,2]
[404090668,1769813431879,-166.66,0.00016769,2]
[404090669,1769813431891,-861.0,0.00016772,2]
[404090670,1769813431900,-861.0,0.00016794,2]
[404090671,1769813431910,-995.24693581,0.00016807,2]
[404090672,1769813431935,-204.75306419,0.00016807,2]
[404090673,1769813431944,-500.0,0.00016808,2]
[404090674,1769813431953,-500.0,0.00016808,2]
[404090675,1769813431962,-500.0,0.00016808,2]
[404090676,1769813431971,-500.0,0.00016808,2]
[404090677,1769813431980,-275.61670381,0.00016808,2]
[404090678,1769813431991,-224.38329619,0.00016808,2]
[404090679,1769813431999,-200.0,0.00016808,2]
[404090680,1769813432009,-500.0,0.00016808,2]
[404090681,1769813432017,-500.0,0.00016808,2]
[404090683,1769813432026,-217.44398715,0.00016808,2]
[404090685,1769813432035,-151.0,0.00016808,2]
[404090686,1769813432044,-151.0,0.00016808,2]
[404090687,1769813432053,-151.0,0.00016808,2]
[404090688,1769813432062,-151.0,0.00016808,2]
[404090689,1769813432071,-151.0,0.00016808,2]
[404090690,1769813432081,-4271.88,0.00016818,2]
[404090692,1769813432090,-861.0,0.00016887,2]
[404090694,1769813432100,-416.07246383,0.00016921,2]
[404090695,1769813432109,-861.0,0.00016949,2]
[404090697,1769813432119,-250.0,0.00017,2]
[404090698,1769813432127,-861.0,0.00017003,2]
[404090699,1769813432137,-578.20924308,0.00017009,2]
[404090700,1769813432146,-209.40437684,0.00017009,2]
[404090701,1769813432155,-174.61919141,0.00017009,2]
[404090702,1769813432164,-721.12765535,0.00017009,2]
[404090703,1769813432173,-854.2589148,0.00017009,2]
[404090704,1769813432182,-322.6107,0.00017009,2]
[404090705,1769813432191,-209.40437684,0.00017009,2]